Cogmind - Beta 16.1 --- EXPLORER MODE // 2026.02.10 @ 10:16:15 Player: K.K.Y. Result: Destroyed by PU-0YK(R) with Subdweller Beam Cannon Performance ------------- Evolutions (0) 0 Regions Visited (2) 400 Robots Destroyed (45) 225 Value Destroyed (1235) 1235 Prototype IDs (13) 260 Alien Tech Used (0) 0 Bonus (0) 0 TOTAL SCORE: 2120 Bonus ------- None Cogmind --------- Core Integrity 0/250 Matter 300/300 Energy 170/170 System Corruption 0% Temperature Cool (94) Movement Treading (360) Ox2 Location -10/Subcaves Parts ------- > --- POWER (1) -------- Makeshift Power Source > --- PROPULSION (2) --- Spiked Treads Spiked Treads > --- UTILITY (3) ------ Improved Heat Sink Huge Storage Unit Structural Scanner > --- WEAPON (2) ------- Medium Laser Makeshift Spear > --- INVENTORY (25) --- Meta Core Improved Heat Sink High-capacity Storage Unit Huge Storage Unit Humpback Improved Terrain Scanner Seismic Detector Makeshift Light Armor Plating Makeshift System Shield Makeshift System Shield Assault Rifle 1B-0RG's Assimilator Multitool Multitool Makeshift Hammer Peak State ------------ > --- POWER ------------ Makeshift Power Source > --- PROPULSION ------- Spiked Treads Spiked Treads > --- UTILITY ---------- Improved Heat Sink Huge Storage Unit Structural Scanner > --- WEAPON ----------- Beam Cannon Makeshift Spear > --- INVENTORY -------- Makeshift Power Source Meta Core Improved Heat Sink High-capacity Storage Unit Huge Storage Unit Humpback Improved Terrain Scanner Seismic Detector Makeshift Light Armor Plating Makeshift System Shield Makeshift System Shield Medium Laser Assault Rifle 1B-0RG's Assimilator Multitool Makeshift Hammer [Rating: 29] Favorites ----------- Power Makeshift Power Source Engine Makeshift Power Source Power Core Light Nuclear Core Propulsion Light Treads Treads Light Treads Utility Improved Heat Sink Device Improved Heat Sink Storage High-capacity Storage Unit Weapon Medium Laser Energy Gun Medium Laser Energy Cannon Beam Cannon Ballistic Gun Assault Rifle Special Weapon Mining Laser Piercing Weapon Makeshift Spear Build | -11 -10 -10 ------- Run | Yrd Mat Sub Slots Evolved 1 | . 1 . Power . | . . . Propulsion . | . . . Utility 1 | . 1 . Weapon . | . . . Parts Attached 24 | 5 6 13 Power 5 | 1 1 3 Engine 4 | 1 1 2 Core 1 | . . 1 Reactor . | . . . Propulsion 7 | 2 1 4 Treads 7 | 2 1 4 Leg . | . . . Wheel . | . . . Hover . | . . . Flight . | . . . Utility 6 | . 3 3 Device 4 | . 2 2 Storage 2 | . 1 1 Processor . | . . . Hackware . | . . . Protection . | . . . Artifact . | . . . Weapon 6 | 2 1 3 Energy Gun 2 | 1 . 1 Energy Cannon 1 | . . 1 Ballistic Gun 1 | 1 . . Ballistic Cannon . | . . . Launcher . | . . . Special Weapon 1 | . 1 . Impact Weapon . | . . . Slashing Weapon . | . . . Piercing Weapon 1 | . . 1 Special Melee Weapon . | . . . Unidentified Prototypes . | . . . Parts Lost 8 | . . 8 Power 3 | . . 3 Propulsion 1 | . . 1 Utility . | . . . Weapon 4 | . . 4 Highest Loss Streak 2 | . . 2 To Critical Strikes . | . . . Average Backups 11 | 2 8 14 Power . | . . . Propulsion . | . . 1 Utility 6 | . 3 8 Weapon 3 | 1 3 3 Tool/Special . | . . . Unused Backups 12 | . . 12 Power . | . . . Propulsion . | . . . Utility 7 | . . 7 Weapon 2 | . . 2 Tool/Special 3 | . . 3 Average Slot Usage (%) 94 | . 96 93 Engine 11 | . 12 11 Treads 24 | . 25 24 Device 24 | . 23 25 Storage 11 | . 10 12 Energy Gun 6 | . 11 3 Energy Cannon 5 | . . 9 Ballistic Gun 4 | . 12 . Piercing Weapon 2 | . . 4 Peak Build Rating 29 | 5 12 29 Average Rating 15 | 4 10 18 On Entrance 5 | . 5 12 Avg Prop Armor Cover (%) . | . . . Naked Turns . | . . . Heaviest Build 91 | 9 51 91 Greatest Support 40 | 40 40 40 Greatest Overweight (x) 2 | . 1 2 Average Overweight (x) 1 | . . 1 Largest Inventory Capacity 25 | 5 20 25 Average Capacity 19 | 5 18 20 Most Carried 21 | 5 14 21 Average Carried 12 | 2 8 15 Final Capacity 25 | 5 20 25 Final Carried 20 | 4 13 20 Class Distribution -------------------- 93% | Hacker-Mutant 6% | Scavenger-Mutant Dominant Class ---------------- Hacker-Mutant | -10/Materials Hacker-Mutant | -10/Subcaves Resources | -11 -10 -10 ----------- Run | Yrd Mat Sub Matter Collected 788 | 265 324 199 Remotely . | . . . Salvage Created 1889 | 100 1103 686 Parts 106 | 9 55 42 Haulers Intercepted 2 | . 2 . Recyclers Shooed 4 | . 4 . Parts Field Recycled . | . . . Retrieved Matter . | . . . Parts Self-Destructed . | . . . Prevented . | . . . Parts Restored . | . . . Kills | -11 -10 -10 ------- Run | Yrd Mat Sub Combat Hostiles Destroyed 34 | . 19 15 Melee 3 | . . 3 Guns 24 | . 19 5 Cannons 7 | . . 7 Classes Destroyed 9 | 2 6 1 Builder 1 | . 1 . Tunneler 1 | 1 . . Hauler 2 | . 2 . Recycler 4 | 1 3 . Watcher 3 | . 3 . Swarmer 6 | . 4 2 Grunt 12 | . 12 . Artisan 2 | . . 2 Subdweller 16 | . 3 13 Best Kill Streak 4 | 2 4 3 Combat Bots Only 4 | . 4 3 Max Kills in Single Turn 1 | 1 1 1 Gunslinging . | . . . Exploded . | . . . Melee 1 | . . 1 Uniques/NPCs Destroyed . | . . . Combat | -11 -10 -10 -------- Run | Yrd Mat Sub Hostile Shots Fired 218 | . 80 138 Missed 73 | . 33 40 Hits 145 | . 47 98 Projectile 145 | . 47 98 Critical Strikes 6 | . 4 2 Damage Taken 1606 | . 331 1275 Core 264 | . 91 173 Absorbed by Shields . | . . . Ignored by Resistances 981 | . 213 768 Core Remaining (%) 100 | 100 . . Volleys Fired 175 | 5 86 84 Largest 2 | 2 2 2 Hottest 160 | 70 120 160 Shots Fired 296 | 10 169 117 Gun 239 | 10 165 64 Cannon 48 | . . 48 Launcher . | . . . Special 9 | . 4 5 Kinetic 104 | 5 86 13 Thermal 192 | 5 83 104 Explosive . | . . . Electromagnetic . | . . . Robot Hit Streak 28 | 3 18 28 Robot Miss Streak 3 | 1 3 2 Penetration Max . | . . . Secondary Targets 3 | . 2 1 Max Gunslinging Chain 1 | . 1 1 Shots Hit Robots 248 | 6 130 112 Core Hits 82 | 3 50 29 Critical Kills . | . . . Critical Parts Destroyed . | . . . Critical Strikes 15 | 1 7 7 Burn 14 | 1 7 6 Impale 1 | . . 1 Melee Attacks 46 | . . 46 Impact . | . . . Slashing . | . . . Piercing 46 | . . 46 Sneak Attacks 2 | . . 2 Combat Hostiles . | . . . Follow-up Attacks . | . . . Damage Inflicted 3509 | 74 1645 1790 Guns 2466 | 74 1642 750 Cannons 668 | . . 668 Explosions . | . . . Melee 372 | . . 372 Ramming 3 | . 3 . Kinetic 958 | 10 816 132 Thermal 2176 | 64 826 1286 Explosive . | . . . Electromagnetic . | . . . Impact . | . . . Slashing . | . . . Piercing 372 | . . 372 Highest Corruption . | . . . Average Corruption . | . . . Corruption Purged . | . . . Corruption Blocked . | . . . Overload Shots . | . . . Overflow Damage 6 | . . 6 Projectiles 6 | . . 6 Explosions . | . . . Melee . | . . . Knockbacks . | . . . Impact . | . . . Kinetic . | . . . Secondary . | . . . Self-Inflicted Damage . | . . . Shots . | . . . Rammed 1 | . 1 . Targets Rammed 1 | . 1 . Kicked . | . . . Crushed . | . . . Highest Temperature 170 | 45 143 170 Average Temperature 52 | 23 53 108 Received Heat Transfer 1073 | . 252 821 Siege Activations . | . . . Martial Activations . | . . . Shielding Activations . | . . . Robots Disrupted . | . . . Combat Hostiles . | . . . Robots Corrupted . | . . . Combat Hostiles . | . . . Parts Fried . | . . . Impact Corruptions . | . . . Robots Melted . | . . . Combat Hostiles . | . . . Parts Melted 5 | . 3 2 Heat Transferred 6882 | 259 2960 3663 Parts Sabotaged . | . . . Parts Stolen . | . . . Parts Stripped . | . . . Power Chain Reactions . | . . . Alert | -11 -10 -10 ------- Run | Yrd Mat Sub Maximum Alert Level . | . . . Low Security (%) 100 | 100 100 . Level 1 . | . . . Level 2 . | . . . Level 3 . | . . . Level 4 . | . . . Level 5 . | . . . High Security . | . . . Max Security . | . . . Peak Influence 81 | 5 81 . Initial . | . . . Average 7 | 1 8 . Influence Increases 530 | 10 470 50 Destroy 0b10 Robot/C 360 | . 320 40 Destroy 0b10 Robot/NC 55 | 10 45 . Destroy Leader 90 | . 80 10 Successful Hack 21 | . 21 . Destroy Structure 4 | . 4 . Influence Decreases 530 | 10 470 50 Time Decay 530 | 10 470 50 Squads Dispatched 2 | . 2 . Investigation 2 | . 2 . Extermination . | . . . Reinforcement . | . . . Assault . | . . . Garrison . | . . . Intercept . | . . . Searches Triggered . | . . . Construction Impeded . | . . . Haulers Reinforced . | . . . Active Scanning Responses . | . . . Cargo Convoy Interrupts . | . . . Stealth | -11 -10 -10 --------- Run | Yrd Mat Sub Distress Signals 2 | . 2 . Communications Jammed . | . . . Distress Signals . | . . . Times Spotted 42 | . 26 16 Peak Tracking Total 4 | . 4 3 Tactical Retreats . | . . . Traps | -11 -10 -10 ------- Run | Yrd Mat Sub Traps Triggered 1 | . 1 . Indirectly . | . . . Trap Hack Attempts . | . . . Triggered . | . . . Disarmed . | . . . Reprogrammed 3 | . 3 . Reused . | . . . Traps Extracted . | . . . Installed . | . . . Triggered . | . . . Machines | -11 -10 -10 ---------- Run | Yrd Mat Sub Machines Disabled 1 | . . 1 Max in Single Turn 1 | . . 1 Machines Repaired . | . . . Machines Dismantled . | . . . Machines Sabotaged . | . . . Overloaded Fab Kills . | . . . Hacking | -11 -10 -10 --------- Run | Yrd Mat Sub Machines Accessed 12 | . 9 3 Terminals 8 | . 8 . Fabricators . | . . . Repair Stations . | . . . Recycling Units 1 | . 1 . Scanalyzers . | . . . Garrison Access . | . . . Total Hacks 26 | . 22 4 Successful 22 | . 18 4 Failed 4 | . 4 . Catastrophic . | . . . Database Lockouts . | . . . Manual 10 | . 10 . Terminals 20 | . 20 . Fabricators . | . . . Repair Stations . | . . . Recycling Units 2 | . 2 . Scanalyzers . | . . . Garrison Access . | . . . Terminal Hacks 12 | . 8 4 Record 1 | . . 1 Robot Analysis 2 | . 2 . Open Door 1 | . . 1 Locate Traps 4 | . 4 . Reprogram Traps 2 | . 2 . Proto ID Catalog 1 | . . 1 Release Object 1 | . . 1 Fabricator Hacks . | . . . Repair Station Hacks . | . . . Recycling Unit Hacks 1 | . 1 . Retrieve Components 1 | . 1 . Scanalyzer . | . . . Garrison Access Hacks . | . . . Unauthorized Hacks 9 | . 9 . Terminals 8 | . 8 . Botnet 8 | . 8 . Fabricators . | . . . Repair Stations . | . . . Recycling Units 1 | . 1 . Reject 1 | . 1 . Scanalyzers . | . . . Garrison Access . | . . . Data Cores Recovered . | . . . Used . | . . . Hacking Detections 5 | . 5 . Full Trace Events 2 | . 2 . Feedback Events . | . . . Feedback Blocked . | . . . Robot Schematics Acquired . | . . . Robots Built . | . . . Authchips . | . . . Time . | . . . Total Robot Build Rating . | . . . Part Schematics Acquired . | . . . Parts Built . | . . . Authchips . | . . . Time . | . . . Total Part Build Rating . | . . . Part Studies Acquired . | . . . Parts Repaired . | . . . Time . | . . . Parts Recycled . | . . . Recycled Matter . | . . . Retrieved Matter . | . . . Retrieved Components 1 | . 1 . Parts Scanalyzed . | . . . Part Schematics Acquired . | . . . Parts Damaged . | . . . Bothacking | -11 -10 -10 ------------ Run | Yrd Mat Sub Used RIF Installer . | . . . Robots Hacked . | . . . Non-combat . | . . . Combat . | . . . Robot Hacks Applied . | . . . Relay Couplers Released . | . . . Fabnet Peak Effective % . | . . . Robots Rewired . | . . . Allies Hacked . | . . . Hacks Repelled . | . . . Allies | -11 -10 -10 -------- Run | Yrd Mat Sub Total Allies . | . . . Largest Group . | . . . Highest-Rated Group . | . . . Highest-Rated Ally . | . . . Total Orders . | . . . Ally Attacks . | . . . Total Damage . | . . . Kills . | . . . Allies Corrupted . | . . . Allies Melted . | . . . Intel | -11 -10 -10 ------- Run | Yrd Mat Sub Active Infowar (turns) 5635 | . 2070 3565 Structural 5635 | . 2070 3565 Robot Analysis Total 2 | . 2 . Derelict Logs Recovered 2 | . . 2 Drone Launches . | . . . Drone Recoveries . | . . . Exploration | -11 -10 -10 ------------- Run | Yrd Mat Sub Turns Passed 5910 | 112 2233 3565 Spaces Moved 2079 | 66 817 1196 Core 24 | 24 . . Treads 2055 | 42 817 1196 Legs . | . . . Wheels . | . . . Hover . | . . . Flight . | . . . Fastest Speed 50 | 50 160 240 Average Speed 245 | 120 229 263 Slowest Speed 360 | 160 240 360 Overloaded Moves . | . . . Propulsion Burnouts . | . . . Robots Hopped . | . . . Potential Cave-ins . | . . . Cave-ins Triggered . | . . . Exploration Rate (%) 58 | 4 99 72 Regions Visited 2 Branch Regions 1 Pre-discovered Areas 1 | . . 1 Known Exits Taken 2 | 1 1 . Unknown Exits Taken . | . . . Scrap Searched 11 | . . 11 Spaces Dug 15 | . 4 11 Terrain Destroyed 15 | . 4 11 Melee 11 | . . 11 Projectile 4 | . 4 . AOE . | . . . Terrain Rammed . | . . . Walls Destroyed . | . . . Machines Disabled . | . . . Actions | -11 -10 -10 --------- Run | Yrd Mat Sub Total 2522 | 88 995 1439 Wait 153 | 5 73 75 Move 2077 | 65 816 1196 Hop . | . . . Pick Up 33 | 8 10 15 Fast Attach 4 | 1 3 . Attach 12 | 4 . 8 Detach . | . . . Swap 14 | . 4 10 Drop 7 | . 2 5 Fire 175 | 5 86 84 Melee 46 | . . 46 Ram . | . . . Kick . | . . . Crush 1 | . 1 . Escape Stasis . | . . . Rewire . | . . . Trap . | . . . Miscellaneous . | . . . Route ------- -11/Scrapyard -10/Materials (discovered 5 exits: *Mat x3 / *Min / *Sub) -10/Subcaves (discovered 2 exits: *Mat x2) History --------- Turn | Location | Event 16 | -11/Scrapyard | Identified exit to Materials 16 | -11/Scrapyard | Discovered exit to Materials (range 15) 113 | -11/Scrapyard | Entered Materials 113 | -10/Materials | Evolved 1 slot: Utility x1 316 | -10/Materials | Build established: Hacker-Mutant 391 | -10/Materials | Identified exit to Mines 391 | -10/Materials | Discovered exit to Mines (range 6) 613 | -10/Materials | Derelicts attacked the area 694 | -10/Materials | Identified exit to Subcaves 694 | -10/Materials | Discovered exit to Subcaves (range 12) 959 | -10/Materials | Identified exit to Materials 959 | -10/Materials | Discovered exit to Materials (range 15) 1282 | -10/Materials | Discovered exit to Materials (range 16) 1676 | -10/Materials | Discovered exit to Materials (range 16) 2346 | -10/Materials | Entered Subcaves 2349 | -10/Subcaves | Learned location of Zion (-7) 2465 | -10/Subcaves | Disturbed a concealed Subdweller 2670 | -10/Subcaves | Core integrity fell below 50% 2719 | -10/Subcaves | Disturbed a concealed Subdweller 2977 | -10/Subcaves | Shifting Twisted Machinery released Mak. Thermal Plating 3001 | -10/Subcaves | Shifting Twisted Machinery released Mak. Light Armor Plating 3024 | -10/Subcaves | Identified exit to Materials 3024 | -10/Subcaves | Discovered exit to Materials (range 10) 3259 | -10/Subcaves | Shifting Twisted Machinery released Sub. Beam Cannon 3261 | -10/Subcaves | Shifting Twisted Machinery released Flamer 3983 | -10/Subcaves | Discovered exit to Materials (range 5) 4667 | -10/Subcaves | A swath of the cavern ceiling suddenly collapsed 5094 | -10/Subcaves | Learned Materials stockpile data 5149 | -10/Subcaves | Core integrity fell below 20% 5292 | -10/Subcaves | Visited 4L-MR0's lab 5325 | -10/Subcaves | Found Meta Core 5338 | -10/Subcaves | Found Prototype Special Melee Weapon 5911 | -10/Subcaves | Destroyed by PU-0YK(R) with Subdweller Beam Cannon Last Messages --------------- 05338_ Acquired Prototype Special Melee Weapon. 05375_ Acquired 40 matter. 05519_ Mak. Power Source destroyed. 05546_ Beam Cannon destroyed. 05547_ 5A-C2R(R) destroyed. 05550_ BT-HNR(R) suffers critical hit (Burn). 05557_ Subatomizers dissect the Sub. Power Source. 05570_ BT-HNR(R) destroyed. 05572_ Acquired 10 matter. 05579_ Subatomizers dissect the Sub. Power Source. 05887_ Sneak attack on 1J-GC2(u). 05887_ 1J-GC2(u) cries out in pain. 05887_ 1J-GC2(u) destroyed. 05889_ Acquired 10 matter. 05896_ Acquired Multitool. 05898_ PU-0YK(R): "LEAVESUB!" 05909_ Critical hit (Meltdown: +170). Map ----- +----------------------------------------------------+ | " ##?????????????????#### #????????????????? | | #?????????????????### ?????????????????? | | "" ????????????????????? ?????????????????? | | """ #??????????????????? ?????????????????? | | "" ##??????????????????? ???????????????????? | | "" ##???????????????????????????????????????? | | "" ##???????????????????????????????????????? | | ##???????????????????????????????????????? | | ##???????????????????????????????????????? | | ##???????????????????????????????????????? | | ######???????????????????????????????????????? | | ######???????????????????????????????????????? | | ###?????????????????????????????????????????? | | ########???????????????????????????????????? | | #########????????### ???????????????????????? | | #### ???????? ## ???????????????????????? | | #### ????????? ?????????????????????? | | ### ?????????? ##?????????????????????? | | ###### ##??????????? ###????????????????????? | | ###### ###??????????? ###????????????????????? | | ##### ##????????????? ##????????????????????? | | #### ##???????????? " ######????????????????? | | ### ##????????????##" "#######???????????????? | | ######????????????## ### ###???????????????? | | ######?????????????##R" ##???????????????? | | ## ####????????????##@"""" ##???????????????? | | !&[ ###????????????## [ """##???????????????? | | *&&! ##???????????### ##???????????????? | | !=%&[###???????????### ##?###???????????? | | &##### ???????????##"" ;## ###??????????? | | #####????????????##### %### ###?????????? | | ##???????????????##### ###??? ##?????????? | | ###??????????????###### ### ? ###?????????? | | # ##########??????### " ## ####?????????? | | ################## "" ###???????????? | | #### " ######### "" ###????????????? | | ""### #### "" ! ???????????? | | "### ## ### ## # ??????????? | | ""## ## ## # # ### ??????????? | | ""##### ## ###### ???????????? | | """ #### ####### ???????????? | | " """ ### # # #####?????????????? | | """####""# ###### ##?????????????? | | " "######### ##### ###### ###?????????????? | | " ########## #########???? ####?????????????? | | ##### ########????? ###??????????????? | | """ ##### ##??????????? ???????????????? | | " " """" ##??????????? ???????????????? | | """ """ ##?????????????? ??????????????? | | "" ###??????????????????????????????? | +----------------------------------------------------+ Best States ------------- Heat Dissipation 39 Energy Generation 15 Energy Capacity 250 Matter Stores 300 Matter Capacity 300 Sight Range 16 Terrain Scan Density 10 Resistance: KI 35 Resistance: TH 35 Resistance: EX 35 Resistance: EM 35 Resistance: I 35 Resistance: S 35 Resistance: P 35 Evasion (%) 50 Recoil Reduction 2 Offensive Hacking 20 Item Schematics ----------------- None Robot Schematics ------------------ None Fabricated ------------ Nothing Repaired ---------- Nothing Studied --------- None Alien Tech Used ----------------- None Achievements -------------- None Challenges ------------ None Game ------ Seed MasterSubdwellerSlamshotty Manual? 0 Play Time 00:17:26 Cumulative 327.6 hours Start 2026.02.10 @ 09:59:27 End 2026.02.10 @ 10:16:15 Sessions 1 Manual Loads 0 Difficulty Explorer Special Mode None Game No. 520 Rogue 0 Adventurer 0 Explorer 520 Win Type - Total 0 Types 0/0/0/0/0/0/0/0/0/0 Lore% 77 Gallery% 67 Achievement% 56 Wizard Run 0 Options --------- Layout 1 ASCII 0 Keyboard 0 Movement Mouse Keybinds 1 Fullscreen 1 Font 24/Smallcaps Map View 50x35 Zoom Use 0% Tactical HUD 1 Map Filters NONE Filters NONE Steam 1 RUN: 1a1fc130-19be-4079-9304-e18fd203a000